Workbook

Sheet Главная
A2: Проекты | E2: Остатков на ЮНИТ-ДЗ
A3: (пусто) | E3: 0
A4: (пусто)
A5: (пусто) Итог
A6: Общий итог

Sheet МатЛист
A1: № | B1: Комплектующее | C1: Код 1С | D1: Артикул | E1: Ед. | F1: Кол-во
A2: 1 | B2: Винт М4х6 DIN 7985 | C2: 14188 | E2: шт | F2: 2
A3: 2 | B3: Гайка М4 DIN 439 | C3: 13779 | E3: шт | F3: 2
A4: 3 | B4: Гайка М4 DIN 985 | C4: 11453 | E4: шт | F4: 16
A5: 4 | B5: Гофроящик 170х170х100 | C5: 13270 | E5: шт | F5: 1
A6: 5 | B6: Кабель FRC-20 плоский | C6: 12673 | D6: FRC-20 | E6: м | F6: 0.15
A7: 6 | B7: Коннектор ЮТКБ.753324.701 | C7: 11904 | D7: ЮТКБ.753324.701 | E7: шт | F7: 1
A8: 7 | B8: Крепеж на рейку FM 4/TS35 | C8: 27 | D8: 0687900000-W | E8: шт | F8: 2
A9: 8 | B9: Крышка ДЗ ЮТКБ.301261.701 | C9: 12077 | D9: ЮТКБ.301261.701 | E9: шт | F9: 1
A10: 9 | B10: Модуль процессора ЮТКБ.687254.703 | C10: 13691 | D10: ЮТКБ.687254.703 | E10: шт | F10: 1
A11: 10 | B11: Наклейка Тип-ПСт 10х40 | C11: 13699 | D11: 0960.05.01 | E11: шт | F11: 1
A12: 11 | B12: Основание ДЗ ЮТКБ.301261.702 | C12: 13262 | D12: ЮТКБ.301261.702 | E12: шт | F12: 1
A13: 12 | B13: Пакет 200х220х100мкм | C13: 14867 | E13: шт | F13: 1
A14: 13 | B14: Пакет ZIPLOK 100х100мм | C14: 13906 | E14: шт | F14: 1
A15: 14 | B15: Пакет ZIPLOK 100х150мм | C15: 13908 | E15: шт | F15: 1
A16: 15 | B16: Панель ДЗ ЮТКБ.754463.703 | C16: 13365 | D16: ЮТКБ.754463.703 | E16: шт | F16: 1
A17: 16 | B17: Планка ДЗ ЮТКБ.745217.703 | C17: 12082 | D17: ДЗ ЮТКБ.745217.703 | E17: шт | F17: 1
A18: 17 | B18: Пружина 0,5х4хх11,1 сжатия | C18: 13261 | E18: шт | F18: 1
A19: 18 | B19: Разъем XG4M2030T Omron | C19: 12911 | D19: XG4M2030T | E19: шт | F19: 2
A20: 19 | B20: Саморез 2,9х6,5 DIN 7981 F | C20: 11455 | E20: шт | F20: 3
A21: 20 | B21: Саморез 3х6 DIN 7500 C-Z | C21: 14605 | E21: шт | F21: 3
A22: 21 | B22: Саморез 3х8 DIN 7500 | C22: 14602 | E22: шт | F22: 3
A23: 22 | B23: Соединитель электрический BL 3.50/04/180F SN OR BX | C23: 13624 | D23: 1606660000 | E23: шт | F23: 1
A24: 23 | B24: Соединитель электрический BLZP 5.08HC/02/180F SN OR BX | C24: 13627 | D24: 1944090000 | E24: шт | F24: 1
A25: 24 | B25: Соединитель электрический BLZP 5.08HC/06/180F SN OR BX | C25: 13626 | D25: 1944130000 | E25: шт | F25: 1
A26: 25 | B26: Соединитель электрический BLZP 5.08HC/10/180F SN OR BX | C26: 13625 | D26: 1944170000 | E26: шт | F26: 1
A27: 26 | B27: Стойка гладкая 4-6 (CYX LED-6.3G*6) | C27: 13806 | D27: 13819 | E27: шт | F27: 4
A28: 27 | B28: Стойка гладкая 4-7 нейлон-66(UL) | C28: 13807 | D28: 13820 | E28: шт | F28: 4
A29: 28 | B29: Субмодуль дискретного входа ЮТКБ.687253.711-04 | C29: 19534 | D29: ЮТКБ.687253.711-04 | E29: шт | F29: 2
A30: 29 | B30: Субмодуль оптоприемника ЮТКБ.687241.701 | C30: 14481 | E30: шт | F30: 4
A31: 30 | B31: Шайба М4,3 тип A/J DIN 6798 | C31: 13169 | E31: шт | F31: 1
A32: 31 | B32: Этикетка ЮТКБ.754349.701 | C32: 15227 | D32: ЮТКБ.754349.701 | E32: шт | F32: 1
A33: 32 | B33: Этикетка ЮТКБ.754349.702 | C33: 15228 | D33: ЮТКБ.754349.702 | E33: шт | F33: 1
A34: 33 | B34: Модуль питания ЮТКБ.687254.702 | C34: 13690 | D34: ЮТКБ.687254.702 | E34: шт | F34: 1

Sheet Склад
A1: Комплектующее | B1: Код 1С | C1: Артикул | D1: Ед. | E1: Кол-во | F1: Цена | G1: Сумма | H1: На какое колич. ЮНИТ-ДЗ
A2: =МатЛист[[#This Row],[Комплектующее]] -> Винт М4х6 DIN 7985 | B2: =МатЛист[[#This Row],[Код 1С]] -> 14188 | C2: =МатЛист[[#This Row],[Артикул]] ->  | D2: =МатЛист[[#This Row],[Ед.]] -> шт | E2: =SUMIF(Приходы!A:A,Всего[[#This Row],[Комплектующее]],Приходы!B:B)-(SUM(Проекты!D:D)*МатЛист[[#This Row],[Кол-во]]) -> 0 | F2: 0.64 | G2: =Всего[[#This Row],[Цена]]*Всего[[#This Row],[Кол-во]] -> 0 | H2: =Всего[[#This Row],[Кол-во]]/МатЛист[[#This Row],[Кол-во]] -> 0
A3: =МатЛист[[#This Row],[Комплектующее]] -> Гайка М4 DIN 439 | B3: 13779 | D3: шт | E3: =SUMIF(Приходы!A:A,Всего[[#This Row],[Комплектующее]],Приходы!B:B)-(SUM(Проекты!D:D)*МатЛист[[#This Row],[Кол-во]]) -> 114 | F3: 0.49 | G3: =Всего[[#This Row],[Цена]]*Всего[[#This Row],[Кол-во]] -> 55.86 | H3: =Всего[[#This Row],[Кол-во]]/МатЛист[[#This Row],[Кол-во]] -> 57
A4: =МатЛист[[#This Row],[Комплектующее]] -> Гайка М4 DIN 985 | B4: 11453 | D4: шт | E4: =SUMIF(Приходы!A:A,Всего[[#This Row],[Комплектующее]],Приходы!B:B)-(SUM(Проекты!D:D)*МатЛист[[#This Row],[Кол-во]]) -> 0 | F4: 0.4 | G4: =Всего[[#This Row],[Цена]]*Всего[[#This Row],[Кол-во]] -> 0 | H4: =Всего[[#This Row],[Кол-во]]/МатЛист[[#This Row],[Кол-во]] -> 0
A5: =МатЛист[[#This Row],[Комплектующее]] -> Гофроящик 170х170х100 | B5: 13270 | D5: шт | E5: =SUMIF(Приходы!A:A,Всего[[#This Row],[Комплектующее]],Приходы!B:B)-(SUM(Проекты!D:D)*МатЛист[[#This Row],[Кол-во]]) -> 0 | F5: 5.21 | G5: =Всего[[#This Row],[Цена]]*Всего[[#This Row],[Кол-во]] -> 0 | H5: =Всего[[#This Row],[Кол-во]]/МатЛист[[#This Row],[Кол-во]] -> 0
A6: =МатЛист[[#This Row],[Комплектующее]] -> Кабель FRC-20 плоский | B6: 12673 | C6: FRC-20 | D6: м | E6: =SUMIF(Приходы!A:A,Всего[[#This Row],[Комплектующее]],Приходы!B:B)-(SUM(Проекты!D:D)*МатЛист[[#This Row],[Кол-во]]) -> 1211 | F6: 34.33 | G6: =Всего[[#This Row],[Цена]]*Всего[[#This Row],[Кол-во]] -> 41573.63 | H6: =Всего[[#This Row],[Кол-во]]/МатЛист[[#This Row],[Кол-во]] -> 8073.333333
A7: =МатЛист[[#This Row],[Комплектующее]] -> Коннектор ЮТКБ.753324.701 | B7: 11904 | C7: ЮТКБ.753324.701 | D7: шт | E7: =SUMIF(Приходы!A:A,Всего[[#This Row],[Комплектующее]],Приходы!B:B)-(SUM(Проекты!D:D)*МатЛист[[#This Row],[Кол-во]]) -> 0 | F7: 19.12 | G7: =Всего[[#This Row],[Цена]]*Всего[[#This Row],[Кол-во]] -> 0 | H7: =Всего[[#This Row],[Кол-во]]/МатЛист[[#This Row],[Кол-во]] -> 0
A8: =МатЛист[[#This Row],[Комплектующее]] -> Крепеж на рейку FM 4/TS35 | B8: 27 | C8: 0687900000-W | D8: шт | E8: =SUMIF(Приходы!A:A,Всего[[#This Row],[Комплектующее]],Приходы!B:B)-(SUM(Проекты!D:D)*МатЛист[[#This Row],[Кол-во]]) -> 0 | F8: 29.85 | G8: =Всего[[#This Row],[Цена]]*Всего[[#This Row],[Кол-во]] -> 0 | H8: =Всего[[#This Row],[Кол-во]]/МатЛист[[#This Row],[Кол-во]] -> 0
A9: =МатЛист[[#This Row],[Комплектующее]] -> Крышка ДЗ ЮТКБ.301261.701 | B9: 12077 | C9: ЮТКБ.301261.701 | D9: шт | E9: =SUMIF(Приходы!A:A,Всего[[#This Row],[Комплектующее]],Приходы!B:B)-(SUM(Проекты!D:D)*МатЛист[[#This Row],[Кол-во]]) -> 0 | F9: 429.07 | G9: =Всего[[#This Row],[Цена]]*Всего[[#This Row],[Кол-во]] -> 0 | H9: =Всего[[#This Row],[Кол-во]]/МатЛист[[#This Row],[Кол-во]] -> 0
A10: =МатЛист[[#This Row],[Комплектующее]] -> Модуль процессора ЮТКБ.687254.703 | B10: 13691 | C10: ЮТКБ.687254.703 | D10: шт | E10: =SUMIF(Приходы!A:A,Всего[[#This Row],[Комплектующее]],Приходы!B:B)-(SUM(Проекты!D:D)*МатЛист[[#This Row],[Кол-во]]) -> 0 | F10: 3276.61 | G10: =Всего[[#This Row],[Цена]]*Всего[[#This Row],[Кол-во]] -> 0 | H10: =Всего[[#This Row],[Кол-во]]/МатЛист[[#This Row],[Кол-во]] -> 0
A11: =МатЛист[[#This Row],[Комплектующее]] -> Наклейка Тип-ПСт 10х40 | B11: 13699 | C11: 0960.05.01 | D11: шт | E11: =SUMIF(Приходы!A:A,Всего[[#This Row],[Комплектующее]],Приходы!B:B)-(SUM(Проекты!D:D)*МатЛист[[#This Row],[Кол-во]]) -> 0 | F11: 1.46 | G11: =Всего[[#This Row],[Цена]]*Всего[[#This Row],[Кол-во]] -> 0 | H11: =Всего[[#This Row],[Кол-во]]/МатЛист[[#This Row],[Кол-во]] -> 0
A12: =МатЛист[[#This Row],[Комплектующее]] -> Основание ДЗ ЮТКБ.301261.702 | B12: 13262 | C12: ЮТКБ.301261.702 | D12: шт | E12: =SUMIF(Приходы!A:A,Всего[[#This Row],[Комплектующее]],Приходы!B:B)-(SUM(Проекты!D:D)*МатЛист[[#This Row],[Кол-во]]) -> 0 | F12: 342.3 | G12: =Всего[[#This Row],[Цена]]*Всего[[#This Row],[Кол-во]] -> 0 | H12: =Всего[[#This Row],[Кол-во]]/МатЛист[[#This Row],[Кол-во]] -> 0
A13: =МатЛист[[#This Row],[Комплектующее]] -> Пакет 200х220х100мкм | B13: 14867 | D13: шт | E13: =SUMIF(Приходы!A:A,Всего[[#This Row],[Комплектующее]],Приходы!B:B)-(SUM(Проекты!D:D)*МатЛист[[#This Row],[Кол-во]]) -> 0 | F13: 1.59 | G13: =Всего[[#This Row],[Цена]]*Всего[[#This Row],[Кол-во]] -> 0 | H13: =Всего[[#This Row],[Кол-во]]/МатЛист[[#This Row],[Кол-во]] -> 0
A14: =МатЛист[[#This Row],[Комплектующее]] -> Пакет ZIPLOK 100х100мм | B14: 13906 | D14: шт | E14: =SUMIF(Приходы!A:A,Всего[[#This Row],[Комплектующее]],Приходы!B:B)-(SUM(Проекты!D:D)*МатЛист[[#This Row],[Кол-во]]) -> 0 | F14: 0.48 | G14: =Всего[[#This Row],[Цена]]*Всего[[#This Row],[Кол-во]] -> 0 | H14: =Всего[[#This Row],[Кол-во]]/МатЛист[[#This Row],[Кол-во]] -> 0
A15: =МатЛист[[#This Row],[Комплектующее]] -> Пакет ZIPLOK 100х150мм | B15: 13908 | D15: шт | E15: =SUMIF(Приходы!A:A,Всего[[#This Row],[Комплектующее]],Приходы!B:B)-(SUM(Проекты!D:D)*МатЛист[[#This Row],[Кол-во]]) -> 0 | F15: 1.72 | G15: =Всего[[#This Row],[Цена]]*Всего[[#This Row],[Кол-во]] -> 0 | H15: =Всего[[#This Row],[Кол-во]]/МатЛист[[#This Row],[Кол-во]] -> 0
A16: =МатЛист[[#This Row],[Комплектующее]] -> Панель ДЗ ЮТКБ.754463.703 | B16: 13365 | C16: ЮТКБ.754463.703 | D16: шт | E16: =SUMIF(Приходы!A:A,Всего[[#This Row],[Комплектующее]],Приходы!B:B)-(SUM(Проекты!D:D)*МатЛист[[#This Row],[Кол-во]]) -> 0 | F16: 112.73 | G16: =Всего[[#This Row],[Цена]]*Всего[[#This Row],[Кол-во]] -> 0 | H16: =Всего[[#This Row],[Кол-во]]/МатЛист[[#This Row],[Кол-во]] -> 0
A17: =МатЛист[[#This Row],[Комплектующее]] -> Планка ДЗ ЮТКБ.745217.703 | B17: 12082 | C17: ДЗ ЮТКБ.745217.703 | D17: шт | E17: =SUMIF(Приходы!A:A,Всего[[#This Row],[Комплектующее]],Приходы!B:B)-(SUM(Проекты!D:D)*МатЛист[[#This Row],[Кол-во]]) -> 0 | F17: 44.12 | G17: =Всего[[#This Row],[Цена]]*Всего[[#This Row],[Кол-во]] -> 0 | H17: =Всего[[#This Row],[Кол-во]]/МатЛист[[#This Row],[Кол-во]] -> 0
A18: =МатЛист[[#This Row],[Комплектующее]] -> Пружина 0,5х4хх11,1 сжатия | B18: 13261 | D18: шт | E18: =SUMIF(Приходы!A:A,Всего[[#This Row],[Комплектующее]],Приходы!B:B)-(SUM(Проекты!D:D)*МатЛист[[#This Row],[Кол-во]]) -> 0 | F18: 4.15 | G18: =Всего[[#This Row],[Цена]]*Всего[[#This Row],[Кол-во]] -> 0 | H18: =Всего[[#This Row],[Кол-во]]/МатЛист[[#This Row],[Кол-во]] -> 0
A19: =МатЛист[[#This Row],[Комплектующее]] -> Разъем XG4M2030T Omron | B19: 12907 | C19: XG4C2031 | D19: шт | E19: =SUMIF(Приходы!A:A,Всего[[#This Row],[Комплектующее]],Приходы!B:B)-(SUM(Проекты!D:D)*МатЛист[[#This Row],[Кол-во]]) -> 0 | F19: 71.72 | G19: =Всего[[#This Row],[Цена]]*Всего[[#This Row],[Кол-во]] -> 0 | H19: =Всего[[#This Row],[Кол-во]]/МатЛист[[#This Row],[Кол-во]] -> 0
A20: =МатЛист[[#This Row],[Комплектующее]] -> Саморез 2,9х6,5 DIN 7981 F | B20: 12910 | C20: XG4C2034 | D20: шт | E20: =SUMIF(Приходы!A:A,Всего[[#This Row],[Комплектующее]],Приходы!B:B)-(SUM(Проекты!D:D)*МатЛист[[#This Row],[Кол-во]]) -> 0 | F20: 72.15 | G20: =Всего[[#This Row],[Цена]]*Всего[[#This Row],[Кол-во]] -> 0 | H20: =Всего[[#This Row],[Кол-во]]/МатЛист[[#This Row],[Кол-во]] -> 0
A21: =МатЛист[[#This Row],[Комплектующее]] -> Саморез 3х6 DIN 7500 C-Z | B21: 12911 | C21: XG4M2030T | D21: шт | E21: =SUMIF(Приходы!A:A,Всего[[#This Row],[Комплектующее]],Приходы!B:B)-(SUM(Проекты!D:D)*МатЛист[[#This Row],[Кол-во]]) -> 0 | F21: 70.68 | G21: =Всего[[#This Row],[Цена]]*Всего[[#This Row],[Кол-во]] -> 0 | H21: =Всего[[#This Row],[Кол-во]]/МатЛист[[#This Row],[Кол-во]] -> 0
A22: =МатЛист[[#This Row],[Комплектующее]] -> Саморез 3х8 DIN 7500 | B22: 11455 | D22: шт | E22: =SUMIF(Приходы!A:A,Всего[[#This Row],[Комплектующее]],Приходы!B:B)-(SUM(Проекты!D:D)*МатЛист[[#This Row],[Кол-во]]) -> 0 | F22: 0.54 | G22: =Всего[[#This Row],[Цена]]*Всего[[#This Row],[Кол-во]] -> 0 | H22: =Всего[[#This Row],[Кол-во]]/МатЛист[[#This Row],[Кол-во]] -> 0
A23: =МатЛист[[#This Row],[Комплектующее]] -> Соединитель электрический BL 3.50/04/180F SN OR BX | B23: 14605 | D23: шт | E23: =SUMIF(Приходы!A:A,Всего[[#This Row],[Комплектующее]],Приходы!B:B)-(SUM(Проекты!D:D)*МатЛист[[#This Row],[Кол-во]]) -> 0 | F23: 0.88 | G23: =Всего[[#This Row],[Цена]]*Всего[[#This Row],[Кол-во]] -> 0 | H23: =Всего[[#This Row],[Кол-во]]/МатЛист[[#This Row],[Кол-во]] -> 0
A24: =МатЛист[[#This Row],[Комплектующее]] -> Соединитель электрический BLZP 5.08HC/02/180F SN OR BX | B24: 14602 | D24: шт | E24: =SUMIF(Приходы!A:A,Всего[[#This Row],[Комплектующее]],Приходы!B:B)-(SUM(Проекты!D:D)*МатЛист[[#This Row],[Кол-во]]) -> 0 | F24: 1.02 | G24: =Всего[[#This Row],[Цена]]*Всего[[#This Row],[Кол-во]] -> 0 | H24: =Всего[[#This Row],[Кол-во]]/МатЛист[[#This Row],[Кол-во]] -> 0
A25: =МатЛист[[#This Row],[Комплектующее]] -> Соединитель электрический BLZP 5.08HC/06/180F SN OR BX | B25: 13624 | C25: 1606660000 | D25: шт | E25: =SUMIF(Приходы!A:A,Всего[[#This Row],[Комплектующее]],Приходы!B:B)-(SUM(Проекты!D:D)*МатЛист[[#This Row],[Кол-во]]) -> 15 | F25: 41.33 | G25: =Всего[[#This Row],[Цена]]*Всего[[#This Row],[Кол-во]] -> 619.95 | H25: =Всего[[#This Row],[Кол-во]]/МатЛист[[#This Row],[Кол-во]] -> 15
A26: =МатЛист[[#This Row],[Комплектующее]] -> Соединитель электрический BLZP 5.08HC/10/180F SN OR BX | B26: 13627 | C26: 1944090000 | D26: шт | E26: =SUMIF(Приходы!A:A,Всего[[#This Row],[Комплектующее]],Приходы!B:B)-(SUM(Проекты!D:D)*МатЛист[[#This Row],[Кол-во]]) -> 0 | F26: 23.2 | G26: =Всего[[#This Row],[Цена]]*Всего[[#This Row],[Кол-во]] -> 0 | H26: =Всего[[#This Row],[Кол-во]]/МатЛист[[#This Row],[Кол-во]] -> 0
A27: =МатЛист[[#This Row],[Комплектующее]] -> Стойка гладкая 4-6 (CYX LED-6.3G*6) | B27: 13626 | C27: 1944130000 | D27: шт | E27: =SUMIF(Приходы!A:A,Всего[[#This Row],[Комплектующее]],Приходы!B:B)-(SUM(Проекты!D:D)*МатЛист[[#This Row],[Кол-во]]) -> 0 | F27: 59.18 | G27: =Всего[[#This Row],[Цена]]*Всего[[#This Row],[Кол-во]] -> 0 | H27: =Всего[[#This Row],[Кол-во]]/МатЛист[[#This Row],[Кол-во]] -> 0
A28: =МатЛист[[#This Row],[Комплектующее]] -> Стойка гладкая 4-7 нейлон-66(UL) | B28: 13625 | C28: 1944170000 | D28: шт | E28: =SUMIF(Приходы!A:A,Всего[[#This Row],[Комплектующее]],Приходы!B:B)-(SUM(Проекты!D:D)*МатЛист[[#This Row],[Кол-во]]) -> 0 | F28: 95.47 | G28: =Всего[[#This Row],[Цена]]*Всего[[#This Row],[Кол-во]] -> 0 | H28: =Всего[[#This Row],[Кол-во]]/МатЛист[[#This Row],[Кол-во]] -> 0
A29: =МатЛист[[#This Row],[Комплектующее]] -> Субмодуль дискретного входа ЮТКБ.687253.711-04 | B29: 13621 | C29: 1607060000 | D29: шт | E29: =SUMIF(Приходы!A:A,Всего[[#This Row],[Комплектующее]],Приходы!B:B)-(SUM(Проекты!D:D)*МатЛист[[#This Row],[Кол-во]]) -> 0 | F29: 21.35 | G29: =Всего[[#This Row],[Цена]]*Всего[[#This Row],[Кол-во]] -> 0 | H29: =Всего[[#This Row],[Кол-во]]/МатЛист[[#This Row],[Кол-во]] -> 0
A30: =МатЛист[[#This Row],[Комплектующее]] -> Субмодуль оптоприемника ЮТКБ.687241.701 | B30: 13623 | C30: 1148740000 | D30: шт | E30: =SUMIF(Приходы!A:A,Всего[[#This Row],[Комплектующее]],Приходы!B:B)-(SUM(Проекты!D:D)*МатЛист[[#This Row],[Кол-во]]) -> 0 | F30: 26.92 | G30: =Всего[[#This Row],[Цена]]*Всего[[#This Row],[Кол-во]] -> 0 | H30: =Всего[[#This Row],[Кол-во]]/МатЛист[[#This Row],[Кол-во]] -> 0
A31: =МатЛист[[#This Row],[Комплектующее]] -> Шайба М4,3 тип A/J DIN 6798 | B31: 13622 | C31: 1148880000 | D31: шт | E31: =SUMIF(Приходы!A:A,Всего[[#This Row],[Комплектующее]],Приходы!B:B)-(SUM(Проекты!D:D)*МатЛист[[#This Row],[Кол-во]]) -> 0 | F31: 38.56 | G31: =Всего[[#This Row],[Цена]]*Всего[[#This Row],[Кол-во]] -> 0 | H31: =Всего[[#This Row],[Кол-во]]/МатЛист[[#This Row],[Кол-во]] -> 0
A32: =МатЛист[[#This Row],[Комплектующее]] -> Этикетка ЮТКБ.754349.701 | B32: 12643 | C32: 1148610000 | D32: шт | E32: =SUMIF(Приходы!A:A,Всего[[#This Row],[Комплектующее]],Приходы!B:B)-(SUM(Проекты!D:D)*МатЛист[[#This Row],[Кол-во]]) -> 0 | F32: 13.89 | G32: =Всего[[#This Row],[Цена]]*Всего[[#This Row],[Кол-во]] -> 0 | H32: =Всего[[#This Row],[Кол-во]]/МатЛист[[#This Row],[Кол-во]] -> 0
A33: =МатЛист[[#This Row],[Комплектующее]] -> Этикетка ЮТКБ.754349.702 | B33: 13806 | C33: 13819 | D33: шт | E33: =SUMIF(Приходы!A:A,Всего[[#This Row],[Комплектующее]],Приходы!B:B)-(SUM(Проекты!D:D)*МатЛист[[#This Row],[Кол-во]]) -> 0 | F33: 0.8 | G33: =Всего[[#This Row],[Цена]]*Всего[[#This Row],[Кол-во]] -> 0 | H33: =Всего[[#This Row],[Кол-во]]/МатЛист[[#This Row],[Кол-во]] -> 0
A34: =МатЛист[[#This Row],[Комплектующее]] -> Модуль питания ЮТКБ.687254.702 | B34: 13807 | C34: 13820 | D34: шт | E34: =SUMIF(Приходы!A:A,Всего[[#This Row],[Комплектующее]],Приходы!B:B)-(SUM(Проекты!D:D)*МатЛист[[#This Row],[Кол-во]]) -> 0 | F34: 0.88 | G34: =Всего[[#This Row],[Цена]]*Всего[[#This Row],[Кол-во]] -> 0 | H34: =Всего[[#This Row],[Кол-во]]/МатЛист[[#This Row],[Кол-во]] -> 0

Sheet Приходы
A1: Наименование | B1: Кол. | C1: ЕД | D1: Дата прихода | E1: Код 1С | F1: Артикул | G1: Цена | H1: Сумма
A2: Гайка М4 DIN 439 | B2: 1 | C2: =VLOOKUP(Пришло[[#This Row],[Наименование]],Всего[],4,FALSE) -> шт | D2: 2020-03-01T00:43:46 | E2: =VLOOKUP(Пришло[[#This Row],[Наименование]],Всего[],2,FALSE) -> 13779 | F2: =VLOOKUP(Пришло[[#This Row],[Наименование]],Всего[],3,FALSE) ->  | G2: =VLOOKUP(Пришло[[#This Row],[Наименование]],Всего[],6,FALSE) -> 0.49 | H2: =Пришло[[#This Row],[Кол.]]*Пришло[[#This Row],[Цена]] -> 0.49
A3: Гайка М4 DIN 439 | B3: 2 | C3: =VLOOKUP(Пришло[[#This Row],[Наименование]],Всего[],4,FALSE) -> шт | D3: 2020-03-01T00:44:36 | E3: =VLOOKUP(Пришло[[#This Row],[Наименование]],Всего[],2,FALSE) -> 13779 | F3: =VLOOKUP(Пришло[[#This Row],[Наименование]],Всего[],3,FALSE) ->  | G3: =VLOOKUP(Пришло[[#This Row],[Наименование]],Всего[],6,FALSE) -> 0.49 | H3: =Пришло[[#This Row],[Кол.]]*Пришло[[#This Row],[Цена]] -> 0.98
A4: Кабель FRC-20 плоский | B4: 1211 | C4: =VLOOKUP(Пришло[[#This Row],[Наименование]],Всего[],4,FALSE) -> м | D4: 2020-03-01T17:14:37 | E4: =VLOOKUP(Пришло[[#This Row],[Наименование]],Всего[],2,FALSE) -> 12673 | F4: =VLOOKUP(Пришло[[#This Row],[Наименование]],Всего[],3,FALSE) -> FRC-20 | G4: =VLOOKUP(Пришло[[#This Row],[Наименование]],Всего[],6,FALSE) -> 34.33 | H4: =Пришло[[#This Row],[Кол.]]*Пришло[[#This Row],[Цена]] -> 41573.63
A5: Соединитель электрический BLZP 5.08HC/06/180F SN OR BX | B5: 15 | C5: =VLOOKUP(Пришло[[#This Row],[Наименование]],Всего[],4,FALSE) -> шт | D5: 2020-03-01T18:29:40 | E5: =VLOOKUP(Пришло[[#This Row],[Наименование]],Всего[],2,FALSE) -> 13624 | F5: =VLOOKUP(Пришло[[#This Row],[Наименование]],Всего[],3,FALSE) -> 1606660000 | G5: =VLOOKUP(Пришло[[#This Row],[Наименование]],Всего[],6,FALSE) -> 41.33 | H5: =Пришло[[#This Row],[Кол.]]*Пришло[[#This Row],[Цена]] -> 619.95
A6: Гайка М4 DIN 439 | B6: 100 | C6: =VLOOKUP(Пришло[[#This Row],[Наименование]],Всего[],4,FALSE) -> шт | D6: 2020-03-04T22:35:05 | E6: =VLOOKUP(Пришло[[#This Row],[Наименование]],Всего[],2,FALSE) -> 13779 | F6: =VLOOKUP(Пришло[[#This Row],[Наименование]],Всего[],3,FALSE) ->  | G6: =VLOOKUP(Пришло[[#This Row],[Наименование]],Всего[],6,FALSE) -> 0.49 | H6: =Пришло[[#This Row],[Кол.]]*Пришло[[#This Row],[Цена]] -> 49
A7: Гайка М4 DIN 439 | B7: 11 | C7: =VLOOKUP(Пришло[[#This Row],[Наименование]],Всего[],4,FALSE) -> шт | D7: 2020-03-05T21:03:35 | E7: =VLOOKUP(Пришло[[#This Row],[Наименование]],Всего[],2,FALSE) -> 13779 | F7: =VLOOKUP(Пришло[[#This Row],[Наименование]],Всего[],3,FALSE) ->  | G7: =VLOOKUP(Пришло[[#This Row],[Наименование]],Всего[],6,FALSE) -> 0.49 | H7: =Пришло[[#This Row],[Кол.]]*Пришло[[#This Row],[Цена]] -> 5.39

Sheet Проекты
A1: Задача в Jira | B1: Проект | C1: Устройство | D1: Количество | E1: Дата отгрузки

Sheet Вспомогательный
A1: Устройства
A2: ЮНИТ-ДЗ
A3: БПТН
